bitfinex-derivatives/quotes_SOLF0:USTF0_20250820
["timestamp","ask_amount","ask_price","bid_price","bid_amount"]
[1755708378524,2.93444075,184.35,184.3,0.03477779]
[1755708378729,2.93444075,184.35,184.31,2.89]
[1755708379124,2.9,184.34,184.3,0.03477779]
[1755708379324,0.03444075,184.35,184.3,2.92477779]
[1755708379524,0.03444075,184.35,184.3,5.46047779]
[1755708379720,0.03444075,184.35,184.32,2.89]
[1755708381429,0.03444075,184.35,184.31,2.89]
[1755708381720,0.03444075,184.35,184.32,2.89]
[1755708381918,0.03444075,184.35,184.34,2.89]
[1755708382317,0.03444075,184.35,184.3,2.92477779]
[1755708382526,0.03444075,184.35,184.31,2.89]
[1755708382726,0.03444075,184.35,184.32,2.89]
[1755708382920,0.03444075,184.35,184.3,0.03477779]
[1755708383316,0.03444075,184.35,184.31,2.89]
[1755708383527,0.03444075,184.35,184.34,5.4246]
[1755708383829,0.03444075,184.35,184.34,8.3146]
[1755708384028,0.03444075,184.35,184.34,8.8546]
[1755708384331,0.03444075,184.35,184.34,8.3146]
[1755708385128,0.03444075,184.35,184.34,8.8546]
[1755708385725,2.9,184.43,184.37,5.4234]
[1755708386828,2.9,184.43,184.36,8.4639]
[1755708387130,3.0,184.46,184.38,0.03502587]
[1755708387431,3.0,184.46,184.38,5.45842587]
[1755708387632,3.0,184.46,184.38,0.03502587]
[1755708388629,3.0,184.46,184.39,8.4629]
[1755708388826,3.0,184.46,184.38,0.03502587]
[1755708390027,3.0,184.46,184.38,3.07502587]
[1755708391130,3.0,184.46,184.39,5.4229]
[1755708391521,3.0,184.46,184.4,5.4227]
[1755708392727,3.0,184.5,184.39,3.04]
[1755708393131,3.0,184.5,184.45,8.4613]
[1755708393527,3.0,184.49,184.45,3.04]
[1755708394527,3.0,184.49,184.44,5.4216]
[1755708394728,3.0,184.5,184.44,5.4216]
[1755708394924,3.0,184.5,184.43,0.03781105]
[1755708395236,5.99275801,184.5,184.43,0.03781105]
[1755708395424,2.99275801,184.5,184.43,0.03781105]
[1755708395630,3.0,184.49,184.43,0.03781105]
[1755708401241,3.0,184.49,184.43,5.45961105]
[1755708401426,364.74,184.51,184.43,0.03781105]
[1755708401735,364.74,184.51,184.45,3.04]
[1755708402439,364.74,184.51,184.45,8.4613]
[1755708402835,364.74,184.51,184.46,5.4208]
[1755708403137,137.18,184.52,184.45,3.04]
[1755708403330,137.18,184.52,184.46,5.421]
[1755708403739,137.18,184.52,184.45,3.04]
[1755708404239,3.0,184.5,184.47,0.03566937]
[1755708407038,137.18,184.52,184.47,0.03566937]
[1755708407435,140.17275801,184.52,184.47,0.03566937]
[1755708407836,3.0,184.49,184.47,0.03566937]
[1755708408036,3.0,184.48,184.47,0.03566937]
[1755708409746,140.17275801,184.52,184.47,0.03566937]
[1755708410043,3.0,184.49,184.47,0.03566937]
[1755708410239,143.17275801,184.52,184.47,0.03566937]
[1755708410543,3.0,184.5,184.47,0.03566937]
[1755708411047,143.17275801,184.52,184.48,3.04]
[1755708411244,140.18,184.52,184.48,3.04]
[1755708411841,137.18,184.52,184.47,0.03566937]
[1755708412039,140.18,184.52,184.47,5.45626937]
[1755708412340,140.18,184.52,184.48,3.04]
[1755708412541,140.18,184.52,184.47,5.45626937]
[1755708412735,140.18,184.52,184.47,8.49626937]
[1755708413136,3.0,184.5,184.47,0.03566937]
[1755708413440,3.0,184.49,184.47,0.03566937]
[1755708413642,3.0,184.48,184.47,0.03566937]
[1755708415751,2.81,184.51,184.47,0.03566937]
[1755708415938,2.81,184.49,184.47,0.03566937]
[1755708416143,142.98275801,184.52,184.47,0.03566937]
[1755708416349,140.17275801,184.52,184.47,0.03566937]
[1755708416546,2.81,184.49,184.47,0.03566937]
[1755708416746,2.81,184.48,184.47,0.03566937]
[1755708418949,2.81,184.51,184.47,0.03566937]
[1755708419142,2.81,184.5,184.47,0.03566937]
[1755708419446,195.58655865,184.55,184.47,0.03566937]
[1755708419748,137.04,184.54,184.47,0.03566937]
[1755708420345,2.81,184.53,184.47,0.03566937]
[1755708420743,2.81,184.49,184.47,0.03566937]
[1755708420944,137.04,184.49,184.47,0.03566937]
[1755708421348,2.99275801,184.51,184.47,0.03566937]
[1755708421652,2.81,184.5,184.47,0.03566937]
[1755708421852,2.81,184.49,184.47,0.03566937]
[1755708422045,137.04,184.5,184.47,0.03566937]
[1755708422251,137.04,184.5,184.47,2.86566937]
[1755708422453,2.81,184.53,184.47,2.86566937]
[1755708422646,137.04,184.52,184.47,0.03566937]
[1755708422843,137.04,184.52,184.49,2.83]
[1755708423352,137.04,184.52,184.5,2.83]
[1755708423552,137.04,184.52,184.48,5.4202]
[1755708423756,137.04,184.52,184.48,2.83]
[1755708424051,137.04,184.52,184.47,0.03566937]
[1755708424052,2.81,184.5,184.47,0.03566937]
[1755708424352,137.04,184.52,184.4,2.83]
[1755708424353,5.80275801,184.48,184.4,2.83]
[1755708424550,137.04,184.47,184.4,2.83]
[1755708424750,137.04,184.47,184.43,2.83]
[1755708424950,137.04,184.47,184.42,5.4221]
[1755708424951,137.04,184.47,184.44,2.83]
[1755708425157,137.04,184.47,184.39,5.4231]
[1755708425346,137.04,184.47,184.38,2.83]
[1755708425550,137.04,184.47,184.38,10.30671971]
[1755708425747,137.02,184.5,184.44,2.83]
[1755708426261,2.81,184.49,184.39,2.83]
[1755708427252,2.81,184.49,184.39,7.3139617]
[1755708427447,2.81,184.49,184.43,8.2516]
[1755708427847,2.81,184.49,184.43,2.83]
[1755708428254,137.02,184.5,184.43,2.83]
[1755708428953,137.02,184.5,184.41,4.4839617]
[1755708429157,137.02,184.5,184.44,2.83]
[1755708429454,137.02,184.5,184.47,2.83]
[1755708430549,137.02,184.5,184.46,5.4207]
[1755708430752,137.02,184.5,184.46,8.2507]
[1755708430952,137.02,184.5,184.42,2.83]
[1755708431859,2.81,184.49,184.42,2.83]
[1755708432057,2.81,184.49,184.41,5.4222]
[1755708432556,2.81,184.49,184.39,4.4839617]
[1755708432959,2.81,184.49,184.42,5.422]
[1755708433159,2.81,184.49,184.41,2.83]
[1755708433554,137.02,184.49,184.43,5.4219]
[1755708434050,137.02,184.49,184.42,5.4221]
[1755708434254,2.81,184.48,184.41,2.83]
[1755708434554,2.81,184.48,184.41,8.2523]
[1755708435457,2.81,184.47,184.39,4.4839617]
[1755708435854,2.99275801,184.45,184.37,7.3139617]
[1755708436054,2.99275801,184.45,184.37,12.7373617]
[1755708436256,8.8774106,184.53,184.4,2.83]
[1755708436455,2.81,184.53,184.45,5.4211]
[1755708436660,139.83,184.53,184.44,2.83]
[1755708437759,139.83,184.53,184.45,5.4211]
[1755708438564,139.83,184.53,184.44,7.3139617]
[1755708439256,139.83,184.53,184.46,5.4208]
[1755708439759,139.83,184.53,184.44,7.3139617]
[1755708440063,139.83,184.53,184.44,2.83]
[1755708440363,139.83,184.53,184.47,5.4207]
[1755708440862,137.02,184.53,184.48,5.4203]
[1755708441052,137.02,184.53,184.49,2.83]
[1755708441259,139.83,184.53,184.49,2.83]
[1755708441660,2.99275801,184.54,184.48,5.4203]
[1755708441864,192.77655865,184.55,184.43,6.08828088]
[1755708441865,195.58655865,184.55,184.47,2.83]
[1755708442069,198.57931666,184.55,184.47,2.83]
[1755708442567,198.57931666,184.55,184.47,8.2505]
[1755708442964,198.57931666,184.55,184.47,2.83]
[1755708443268,5.80275801,184.54,184.45,4.4839617]
[1755708443665,5.80275801,184.54,184.46,5.4208]
[1755708444264,137.02,184.53,184.46,5.4208]
[1755708444663,137.02,184.53,184.45,12.7351617]
[1755708445163,137.02,184.53,184.45,7.3139617]
[1755708445367,137.02,184.53,184.45,8.2512]
[1755708445761,2.82,184.5,184.42,4.4839617]
[1755708445962,2.82,184.5,184.41,4.4839617]
[1755708446170,2.82,184.44,184.39,4.4839617]
[1755708446470,2.82,184.43,184.37,7.3139617]
[1755708446664,2.82,184.43,184.4,0.04091208]
[1755708447364,140.01275801,184.45,184.4,0.04091208]
[1755708447568,2.82,184.44,184.4,0.04091208]
[1755708447775,2.82,184.44,184.4,5.46361208]
[1755708447964,0.03702351,184.44,184.4,0.04091208]
[1755708448167,0.03702351,184.44,184.43,2.83]
[1755708449568,0.03702351,184.44,184.43,8.2519]
[1755708450561,0.03702351,184.44,184.42,5.4221]
[1755708450769,0.03702351,184.44,184.42,2.83]
[1755708450969,0.03702351,184.44,184.41,4.4839617]
[1755708451171,0.03702351,184.44,184.43,2.83]
[1755708451872,0.03702351,184.44,184.43,7.8539617]
[1755708452370,0.03702351,184.44,184.43,13.2758617]
[1755708452574,6.0674106,184.59,184.43,3.37]
[1755708452776,137.02,184.55,184.45,2.83]
[1755708453068,137.02,184.55,184.45,7.36632638]
[1755708453669,137.02,184.55,184.46,4.53632638]
[1755708453866,137.02,184.55,184.49,5.4199]
[1755708454061,137.02,184.55,184.49,8.2499]
[1755708455166,137.02,184.55,184.49,5.4199]
[1755708455471,137.02,184.55,184.48,0.03698574]
[1755708455472,2.82,184.58,184.5,5.4197]
[1755708455664,139.82,184.58,184.49,2.83]
[1755708455869,139.82,184.58,184.51,5.4196]
[1755708456467,139.82,184.58,184.5,5.4198]
[1755708456668,137.0,184.58,184.53,0.03678263]
[1755708456866,2.82,184.56,184.53,0.03678263]
[1755708457266,2.82,184.57,184.53,0.03678263]
[1755708457567,2.82,184.55,184.53,0.03678263]
[1755708458575,2.82,184.54,184.53,0.03678263]
[1755708464072,2.82,184.59,184.53,0.03678263]
[1755708464378,2.82,184.57,184.53,0.03678263]
[1755708464570,2.82,184.56,184.53,0.03678263]
[1755708464774,136.96,184.58,184.53,2.86678263]
[1755708465080,2.82,184.57,184.53,2.86678263]
[1755708467272,2.82,184.57,184.53,0.03678263]
[1755708467474,2.82,184.54,184.53,0.03678263]
[1755708467874,136.96,184.58,184.53,0.03678263]
[1755708468075,139.78,184.58,184.53,2.86678263]
[1755708468881,136.96,184.58,184.55,2.83]
[1755708469383,136.96,184.58,184.56,2.83]
[1755708469679,136.96,184.58,184.57,2.83]
[1755708470070,139.76,184.62,184.57,2.83]
[1755708470881,139.76,184.62,184.58,0.03656669]
[1755708471375,136.94,184.62,184.59,2.83]
[1755708471773,136.94,184.62,184.58,0.03656669]
[1755708472082,136.94,184.62,184.58,2.86656669]
[1755708472678,2.82,184.61,184.58,0.03656669]
[1755708472884,2.82,184.6,184.58,0.03656669]
[1755708473083,2.82,184.61,184.58,0.03656669]
[1755708473280,2.82,184.68,184.58,2.86656669]
[1755708473576,136.94,184.67,184.58,2.86656669]
[1755708474181,136.94,184.67,184.6,5.4167]
[1755708474885,136.92,184.66,184.6,5.4167]
[1755708475489,136.92,184.66,184.59,5.4172]
[1755708475687,2.91,184.65,184.61,0.03739509]
[1755708477388,136.92,184.66,184.61,0.03739509]
[1755708477597,2.91,184.63,184.61,0.03739509]
[1755708477992,136.92,184.66,184.61,0.03739509]
[1755708478198,2.91,184.64,184.61,0.03739509]
[1755708480604,2.91,184.62,184.61,0.03739509]
[1755708481295,2.98774516,184.65,184.61,0.03739509]
[1755708481500,2.91,184.64,184.61,0.03739509]
[1755708481700,2.91,184.61,184.52,2.96]
[1755708481891,136.88,184.6,184.52,2.96]
[1755708482200,136.88,184.6,184.53,5.4189]
[1755708482700,2.98774516,184.59,184.52,2.96]
[1755708483302,2.98774516,184.59,184.53,5.4187]
[1755708483505,2.98774516,184.59,184.52,2.96]
[1755708483803,5.89774516,184.59,184.52,2.96]
[1755708484199,5.89774516,184.59,184.48,2.96]
[1755708484399,5.89774516,184.59,184.5,5.4198]
[1755708484797,5.89774516,184.59,184.48,2.96]
[1755708485295,5.89774516,184.59,184.49,5.4201]
[1755708485902,5.89774516,184.59,184.5,5.4198]
[1755708486297,2.91,184.58,184.48,2.96]
[1755708486502,2.98774516,184.56,184.48,2.96]
[1755708486703,2.91,184.55,184.48,2.96]
[1755708488203,136.88,184.57,184.48,2.96]
[1755708488404,2.98774516,184.58,184.5,0.03813745]
[1755708488610,2.98774516,184.55,184.5,0.03813745]
[1755708488903,2.91,184.53,184.5,0.03813745]
[1755708489402,5.89774516,184.55,184.5,2.99813745]
[1755708489603,5.89774516,184.55,184.5,0.03813745]
[1755708489604,2.91,184.52,184.5,0.03813745]
[1755708489802,2.98774516,184.55,184.5,0.03813745]
[1755708490002,2.91,184.54,184.5,0.03813745]
[1755708490702,5.89774516,184.58,184.51,2.96]
[1755708491702,5.89774516,184.58,184.52,5.4191]
[1755708492004,5.89774516,184.58,184.51,2.96]
[1755708492200,5.89774516,184.58,184.53,5.4189]
[1755708492401,5.89774516,184.58,184.53,2.96]
[1755708492600,2.91,184.57,184.5,0.03813745]
[1755708493603,2.91,184.57,184.51,5.4195]
[1755708494003,2.91,184.57,184.5,5.45793745]
[1755708494605,2.91,184.57,184.5,0.03813745]
[1755708495105,2.91,184.51,184.5,0.03813745]
[1755708495803,9.101116,184.63,184.5,0.03813745]
[1755708495804,2.98774516,184.54,184.5,0.03813745]
[1755708496008,2.91,184.53,184.5,0.03813745]
[1755708496209,2.91,184.53,184.46,2.96]
[1755708496902,2.98774516,184.55,184.46,2.96]
[1755708498708,2.91,184.57,184.39,7.4849256]
[1755708498709,5.89774516,184.49,184.39,7.4849256]
[1755708498910,2.98774516,184.46,184.39,2.96]
[1755708499403,2.91,184.48,184.39,2.96]
[1755708499711,0.03483039,184.44,184.41,0.03858293]
[1755708500011,0.03483039,184.44,184.42,2.96]
[1755708500511,0.03483039,184.44,184.43,2.96]
[1755708500711,0.03483039,184.44,184.41,0.03858293]
[1755708501304,0.03483039,184.44,184.42,2.96]
[1755708501511,0.03483039,184.44,184.43,2.96]
[1755708501906,0.03483039,184.44,184.41,2.99858293]
[1755708502709,0.03483039,184.44,184.41,0.03858293]
[1755708502906,0.03483039,184.44,184.42,2.96]
[1755708503311,0.03483039,184.44,184.43,2.96]
[1755708505317,0.03483039,184.44,184.43,8.3819]
[1755708505717,0.03483039,184.44,184.41,2.92858293]
[1755708505914,0.03483039,184.44,184.42,2.89]
[1755708506112,0.03483039,184.44,184.41,0.03858293]
[1755708506310,0.03483039,184.44,184.43,2.89]
[1755708506707,0.03483039,184.44,184.42,2.89]
[1755708507112,0.03483039,184.44,184.41,0.03858293]
[1755708507808,3.01,184.43,184.41,0.03858293]
[1755708508017,3.01,184.42,184.41,0.03858293]
[1755708510113,0.03483039,184.44,184.41,0.03858293]
[1755708510308,3.01,184.43,184.41,0.03858293]
[1755708511516,3.01,184.42,184.41,0.03858293]
[1755708512325,3.01,184.42,184.33,2.89]
[1755708513017,3.01,184.39,184.33,2.89]
[1755708513519,5.99774516,184.43,184.33,2.89]
[1755708513721,0.04035233,184.38,184.33,2.89]
[1755708513918,0.04035233,184.38,184.27,7.51267076]
[1755708514323,0.04035233,184.38,184.35,2.89]
[1755708514517,0.04035233,184.38,184.3,2.98774516]
[1755708514823,0.04035233,184.38,184.31,2.89]
[1755708515117,0.04035233,184.38,184.36,5.4239]
[1755708515317,0.04035233,184.38,184.37,2.89]
[1755708515521,0.04035233,184.38,184.31,2.89]
[1755708516019,3.01,184.4,184.34,5.4245]
[1755708516217,0.03911607,184.36,184.31,2.89]
[1755708516523,0.03911607,184.36,184.33,2.89]
[1755708516821,0.03911607,184.36,184.34,2.89]
[1755708517724,0.03911607,184.36,184.3,5.4256]
[1755708517913,0.03911607,184.36,184.26,2.89]
[1755708518117,3.01,184.37,184.26,2.89]
[1755708518322,3.01,184.37,184.28,5.4261]
[1755708518519,0.04022704,184.33,184.28,5.4261]
[1755708518718,0.04022704,184.33,184.29,2.89]
[1755708518919,3.05022704,184.33,184.25,2.89]
[1755708520123,3.05022704,184.33,184.26,5.4267]
[1755708521322,3.05022704,184.33,184.25,2.89]
[1755708521517,0.04022704,184.33,184.25,2.89]
[1755708521712,0.04022704,184.33,184.32,2.89]
[1755708522125,3.01,184.38,184.32,2.89]
[1755708522424,0.03998724,184.34,184.32,2.89]
[1755708522821,0.03998724,184.34,184.32,8.3151]
[1755708523213,0.03998724,184.34,184.24,62.0]
[1755708523214,0.03998724,184.34,184.33,2.89]
[1755708523427,0.03998724,184.34,184.33,8.3148]
[1755708523624,0.03998724,184.34,184.28,2.89]
[1755708524322,0.03998724,184.34,184.31,5.4252]
[1755708524624,0.03998724,184.34,184.32,2.89]
[1755708524926,0.03998724,184.34,184.32,8.3149]
[1755708525528,0.03998724,184.34,184.31,5.4254]
[1755708525830,0.03998724,184.34,184.31,2.89]
[1755708526534,0.03998724,184.34,184.31,8.3152]
[1755708526923,0.03998724,184.34,184.25,2.89]
[1755708527622,0.03998724,184.34,184.26,5.4267]
[1755708527926,0.03998724,184.34,184.25,2.89]
[1755708528128,3.01,184.33,184.21,2.89]
[1755708528926,0.03800536,184.29,184.21,2.89]
[1755708529926,0.03800536,184.29,184.24,5.4272]
[1755708530128,3.01,184.28,184.24,5.4272]
[1755708530636,3.01,184.28,184.21,2.89]
[1755708531129,3.01,184.28,184.23,8.3178]
[1755708531732,3.01,184.28,184.23,2.89]
[1755708531928,0.04009535,184.27,184.23,2.89]
[1755708532231,0.04009535,184.27,184.17,62.0]
[1755708532232,3.05009535,184.27,184.2,5.4286]
[1755708532533,3.01,184.27,184.17,2.89]
[1755708532730,0.03575275,184.25,184.19,5.4288]
[1755708533231,0.03575275,184.25,184.17,2.89]
[1755708533232,0.03575275,184.25,184.17,8.3193]
[1755708533430,0.03575275,184.25,184.17,2.89]
[1755708533933,0.03575275,184.25,184.15,2.89]
[1755708534934,0.03575275,184.25,184.18,5.429]
[1755708535632,3.06,184.24,184.15,2.89]
[1755708536229,3.06,184.24,184.16,5.4297]
[1755708536936,3.06,184.24,184.17,5.4295]
[1755708537334,3.06,184.24,184.15,2.89]
[1755708537530,3.06,184.24,184.18,5.429]
[1755708537726,3.06,184.24,184.15,2.89]
[1755708538032,0.03575275,184.25,184.15,2.89]
[1755708538725,0.03575275,184.25,184.14,3.07]
[1755708539332,3.06,184.28,184.19,5.4289]
[1755708539529,0.03420277,184.21,184.12,3.07]
[1755708539934,3.06,184.24,184.12,3.07]
[1755708540140,0.0380638,184.18,184.12,3.07]
[1755708540331,0.0380638,184.18,184.17,8.4995]
[1755708540730,3.06,184.28,184.17,3.61]
[1755708540935,3.06,184.28,184.2,3.07]
[1755708541433,3.00140506,184.31,184.23,5.4276]
[1755708541632,3.06,184.3,184.2,3.07]
[1755708541827,3.06,184.3,184.26,5.4269]
[1755708542029,3.06,184.3,184.23,3.07]
[1755708542236,3.06,184.3,184.18,3.00140506]
[1755708542440,3.06,184.3,184.21,5.4282]
[1755708542936,3.06,184.3,184.22,5.428]
[1755708543131,3.06,184.3,184.18,3.07]
[1755708543638,3.06,184.3,184.11,66.5249256]
[1755708543639,3.06,184.28,184.15,3.07]
[1755708545243,3.06,184.28,184.21,5.4281]
[1755708545640,3.06,184.28,184.2,3.07]
[1755708545840,3.06,184.28,184.15,3.07]
[1755708546839,3.06,184.28,184.17,5.4293]
[1755708547041,3.06,184.28,184.15,3.07]
[1755708549337,3.06,184.28,184.23,5.4277]
[1755708549537,3.06,184.28,184.15,3.07]
[1755708549938,3.06,184.28,184.21,3.07]
[1755708550143,3.06,184.32,184.21,3.07]
[1755708550440,3.06,184.32,184.25,3.07]
[1755708551535,3.06,184.32,184.26,5.4267]
[1755708551740,3.06,184.32,184.2,8.06990096]
[1755708551941,3.06,184.32,184.2,3.07]
[1755708552239,3.06,184.32,184.25,5.427]
[1755708552445,3.06,184.32,184.23,3.07]
[1755708552941,3.06,184.32,184.17,3.07]
[1755708553337,3.06,184.32,184.21,5.4282]
[1755708553538,3.06,184.32,184.17,3.07]
[1755708553739,3.06,184.3,184.17,3.07]
[1755708553936,140.08,184.3,184.17,3.07]
[1755708554144,4.99990096,184.27,184.13,3.07]
[1755708554342,3.06,184.26,184.13,3.07]
[1755708555143,3.06,184.26,184.15,5.4299]
[1755708555340,3.06,184.26,184.13,3.07]
[1755708555744,3.06,184.26,184.15,3.07]
[1755708556040,3.06,184.26,184.19,5.4289]
[1755708556247,3.06,184.26,184.15,3.07]
[1755708557445,3.06,184.3,184.15,3.07]
[1755708557846,0.03943631,184.22,184.2,3.07]
[1755708558050,0.03943631,184.22,184.21,5.4284]
[1755708558249,3.06,184.3,184.21,3.07]
[1755708558450,3.06,184.3,184.16,3.07]
[1755708558946,3.06,184.3,184.2,5.4284]
[1755708559353,3.06,184.3,184.16,3.07]
[1755708559545,3.06,184.3,184.21,5.4281]
[1755708560653,3.06,184.3,184.19,3.07]
[1755708561055,3.06,184.3,184.25,5.4271]
[1755708561350,3.06,184.3,184.22,3.07]
[1755708562047,3.06,184.34,184.22,3.07]
[1755708562453,3.06,184.34,184.19,4.5081945]
[1755708562654,3.06,184.34,184.18,3.07]
[1755708562849,3.06,184.34,184.21,3.07]
[1755708563853,3.06,184.34,184.25,5.427]
[1755708564251,3.06,184.34,184.21,3.07]
[1755708564450,3.06,184.34,184.27,5.4264]
[1755708564859,3.06,184.34,184.25,3.07]
[1755708565054,3.06,184.34,184.28,5.426]
[1755708565754,3.08,184.32,184.21,7.4081945]
[1755708565958,3.08,184.32,184.2,2.99886563]
[1755708565959,3.08,184.29,184.2,4.5081945]
[1755708566155,3.08,184.29,184.22,5.4279]
[1755708566652,3.08,184.29,184.2,2.9]
[1755708567056,3.08,184.29,184.17,4.5081945]
[1755708567057,3.08,184.29,184.17,7.4081945]
[1755708567560,3.08,184.29,184.21,5.4282]
[1755708568660,3.08,184.29,184.22,5.428]
[1755708568854,3.08,184.29,184.2,2.9]
[1755708569655,3.08,184.29,184.23,5.4276]
[1755708570056,3.08,184.29,184.2,2.9]
[1755708570252,3.08,184.29,184.21,5.4282]
[1755708570459,3.08,184.29,184.2,2.9]
[1755708571863,3.08,184.29,184.2,8.3286]
[1755708572262,3.08,184.29,184.2,2.9]
[1755708572470,3.08,184.29,184.19,4.5081945]
[1755708572671,3.08,184.29,184.18,4.5081945]
[1755708573261,3.08,184.29,184.19,5.4287]
[1755708573668,3.08,184.29,184.18,4.5081945]
[1755708575066,3.08,184.29,184.21,5.4282]
[1755708575269,3.08,184.29,184.2,2.9]
[1755708575571,3.08,184.29,184.2,8.3285]
[1755708575772,3.08,184.29,184.2,2.9]
[1755708576374,3.08,184.29,184.21,5.4282]
[1755708576568,3.08,184.29,184.2,2.9]
[1755708577068,3.08,184.29,184.2,7.4081945]
[1755708577275,3.08,184.29,184.21,4.5081945]
[1755708577570,136.98,184.31,184.21,4.5081945]
[1755708577571,136.98,184.31,184.22,2.9]
[1755708577972,136.98,184.31,184.24,5.4273]
[1755708578169,136.98,184.31,184.22,2.9]
[1755708578364,6.0674106,184.35,184.22,2.9]
[1755708578569,3.08,184.39,184.3,4.5081945]
[1755708578774,3.08,184.39,184.31,7.4081945]
[1755708578977,3.08,184.39,184.32,5.4251]
[1755708580276,3.08,184.39,184.33,5.4248]
[1755708580570,3.08,184.39,184.31,2.9]
[1755708580972,3.08,184.39,184.28,4.5081945]
[1755708581168,3.08,184.39,184.27,2.9]
[1755708581369,3.08,184.39,184.29,2.9]
[1755708581578,3.08,184.39,184.28,4.5081945]
[1755708581579,3.08,184.39,184.3,7.4081945]
[1755708581875,3.08,184.39,184.34,5.4243]
[1755708582477,3.08,184.39,184.34,8.3243]
[1755708582669,3.08,184.39,184.35,5.4242]
[1755708582870,140.02,184.43,184.35,2.9]
[1755708583170,140.02,184.43,184.31,2.9]
[1755708585377,140.02,184.43,184.34,5.4243]
[1755708586069,140.02,184.43,184.35,5.4242]
[1755708586273,3.08,184.43,184.35,2.9]
[1755708586673,3.08,184.43,184.37,5.4235]
[1755708587174,119.46230755,184.45,184.35,2.9]
[1755708589074,504.74,184.47,184.35,2.9]
[1755708589275,140.0,184.47,184.38,2.9]
[1755708589581,140.0,184.47,184.42,5.4222]
[1755708590379,140.0,184.47,184.41,5.4224]
[1755708590877,140.0,184.47,184.34,4.98902551]
[1755708590878,136.92,184.47,184.39,5.423]
[1755708591079,3.08,184.46,184.36,2.9]
[1755708591578,3.08,184.46,184.39,5.4231]
[1755708591882,3.08,184.46,184.36,2.9]
[1755708592077,3.08,184.46,184.4,5.4226]
[1755708592970,3.08,184.46,184.39,8.323]
[1755708593480,3.08,184.46,184.39,2.9]
[1755708594378,3.08,184.46,184.39,8.323]
[1755708594573,3.08,184.46,184.39,2.9]
[1755708594772,3.08,184.46,184.42,5.422]
[1755708594974,136.92,184.47,184.42,8.322]
[1755708595180,140.0,184.47,184.42,8.322]
[1755708596084,140.0,184.47,184.43,0.03750926]
[1755708596286,0.03845982,184.46,184.43,0.03750926]
[1755708597486,2.96,184.44,184.43,0.03750926]
[1755708598983,0.03845982,184.46,184.43,0.03750926]
[1755708599179,2.96,184.45,184.43,0.03750926]
[1755708599583,0.03845982,184.46,184.43,0.03750926]
[1755708600087,2.99845982,184.46,184.43,0.03750926]
[1755708600289,0.03845982,184.46,184.43,0.03750926]
[1755708600785,0.03845982,184.46,184.43,3.04750926]
[1755708601182,0.03845982,184.46,184.43,8.46920926]
[1755708601384,0.03845982,184.46,184.45,3.01]
[1755708601783,0.03845982,184.46,184.45,8.4313]
[1755708601990,118.80600887,184.54,184.46,3.01]
[1755708602489,118.80600887,184.54,184.42,3.01]
[1755708602490,2.96,184.53,184.42,3.01]
[1755708603195,2.96,184.53,184.46,0.03747294]
[1755708605490,4.98902551,184.5,184.46,0.03747294]
[1755708605692,2.96,184.48,184.46,0.03747294]
[1755708605892,136.82,184.49,184.46,0.03747294]